[Event "*** Titled Tuesday Blitz"]
[Site "Chess.com"]
[Date "2019.06.04"]
[Round "9"]
[White "DanielMieles1985"]
[Black "Supernotar"]
[Result "1-0"]
[WhiteElo "2648"]
[BlackElo "2559"]
[TimeControl "180+2"]
[EndTime "15:08:16 PDT"]
[Termination "DanielMieles1985 won by resignation"]

1. d4 {[%clk 0:03:01.9]} 1... d5 {[%clk 0:03:00.7]} 2. c4 {[%clk 0:03:02.6]}
2... dxc4 {[%clk 0:03:01.5]} 3. Nf3 {[%clk 0:03:01.9]} 3... Nf6 {[%clk
0:03:02.5]} 4. e3 {[%clk 0:03:03.2]} 4... e6 {[%clk 0:03:03.7]} 5. Bxc4 {[%clk
0:03:04.1]} 5... a6 {[%clk 0:03:05]} 6. O-O {[%clk 0:03:04.4]} 6... b5 {[%clk
0:03:06.2]} 7. Bd3 {[%clk 0:03:04.1]} 7... Bb7 {[%clk 0:03:07.5]} 8. Qe2 {[%clk
0:03:03.4]} 8... Nbd7 {[%clk 0:03:08.6]} 9. a4 {[%clk 0:03:03]} 9... b4 {[%clk
0:03:09.5]} 10. Nbd2 {[%clk 0:03:02.6]} 10... c5 {[%clk 0:03:10.3]} 11. Nc4
{[%clk 0:03:01.4]} 11... Qc7 {[%clk 0:03:11.2]} 12. b3 {[%clk 0:02:59.5]} 12...
Be7 {[%clk 0:03:07.8]} 13. Bb2 {[%clk 0:02:59.7]} 13... O-O {[%clk 0:03:08.7]}
14. Rac1 {[%clk 0:03:00.7]} 14... Rac8 {[%clk 0:02:54.5]} 15. dxc5 {[%clk
0:02:55.4]} 15... Nxc5 {[%clk 0:02:52]} 16. Be5 {[%clk 0:02:52.5]} 16... Qd8
{[%clk 0:02:32.6]} 17. Rfd1 {[%clk 0:02:40.8]} 17... Nxd3 {[%clk 0:02:15.2]} 18.
Rxd3 {[%clk 0:02:40.7]} 18... Bd5 {[%clk 0:02:00.2]} 19. Bxf6 {[%clk 0:02:30.5]}
19... Bxf6 {[%clk 0:01:53.8]} 20. e4 {[%clk 0:02:25.4]} 20... Re8 {[%clk
0:00:54]} 21. exd5 {[%clk 0:02:10]} 21... exd5 {[%clk 0:00:55.1]} 22. Qd1 {[%clk
0:02:10.5]} 22... dxc4 {[%clk 0:00:46]} 23. Rxd8 {[%clk 0:02:11]} 23... Rexd8
{[%clk 0:00:47.1]} 24. Qc2 {[%clk 0:02:05.5]} 24... c3 {[%clk 0:00:45.1]} 25. g3
{[%clk 0:01:59.9]} 25... Rd5 {[%clk 0:00:42.9]} 26. Kg2 {[%clk 0:01:59.4]} 26...
Rcd8 {[%clk 0:00:40]} 27. Qe4 {[%clk 0:01:56.4]} 27... a5 {[%clk 0:00:40.2]} 28.
Rc2 {[%clk 0:01:51.1]} 28... g6 {[%clk 0:00:41.2]} 29. h4 {[%clk 0:01:51]} 29...
h5 {[%clk 0:00:42]} 30. Re2 {[%clk 0:01:49.7]} 30... Kg7 {[%clk 0:00:42]} 31.
Qc4 {[%clk 0:01:50.1]} 31... Rd2 {[%clk 0:00:32.7]} 32. Kf1 {[%clk 0:01:29.4]}
32... Rd1+ {[%clk 0:00:21.2]} 33. Re1 {[%clk 0:01:27.5]} 33... R1d5 {[%clk
0:00:19.5]} 34. Qe2 {[%clk 0:01:12.6]} 34... R8d7 {[%clk 0:00:18.9]} 35. Qe4
{[%clk 0:01:12.2]} 35... Rc5 {[%clk 0:00:17.6]} 36. Rc1 {[%clk 0:01:11.8]} 36...
Rcd5 {[%clk 0:00:17.9]} 37. Ne1 {[%clk 0:01:08.8]} 37... Rd4 {[%clk 0:00:16.5]}
38. Qc6 {[%clk 0:01:00.3]} 38... R7d6 {[%clk 0:00:17.2]} 39. Qc7 {[%clk
0:00:58.1]} 39... R6d5 {[%clk 0:00:18.6]} 40. Nc2 {[%clk 0:00:55.2]} 40... Rd2
{[%clk 0:00:19.7]} 41. Ne3 {[%clk 0:00:54.9]} 41... Rd7 {[%clk 0:00:14]} 42.
Qxa5 {[%clk 0:00:54]} 42... Bd4 {[%clk 0:00:12.9]} 43. Qxb4 {[%clk 0:00:48.7]}
43... Bf6 {[%clk 0:00:04.3]} 44. Rc2 {[%clk 0:00:42.9]} 44... R2d3 {[%clk
0:00:04.2]} 45. a5 {[%clk 0:00:39.6]} 45... R7d4 {[%clk 0:00:05.2]} 46. Qc5
{[%clk 0:00:36.1]} 46... Rd6 {[%clk 0:00:03.3]} 47. Qc4 {[%clk 0:00:31.6]} 47...
Rd2 {[%clk 0:00:03.4]} 48. Rxc3 {[%clk 0:00:31.4]} 48... Ra2 {[%clk 0:00:04]}
49. Rd3 {[%clk 0:00:29.8]} 49... Re6 {[%clk 0:00:05.1]} 50. b4 {[%clk
0:00:29.6]} 50... Re5 {[%clk 0:00:05.7]} 51. a6 {[%clk 0:00:29.3]} 51... Re6
{[%clk 0:00:05.9]} 52. b5 {[%clk 0:00:30.3]} 52... Re5 {[%clk 0:00:05.3]} 53.
Nd5 {[%clk 0:00:29]} 53... Ree2 {[%clk 0:00:04.7]} 54. Rf3 {[%clk 0:00:29.1]}
54... Be5 {[%clk 0:00:05.1]} 55. Nb4 {[%clk 0:00:26.7]} 55... Rab2 {[%clk
0:00:02.3]} 56. Qxf7+ {[%clk 0:00:27.3]} 56... Kh6 {[%clk 0:00:03.2]} 57. Nd3
{[%clk 0:00:28.1]} 57... Red2 {[%clk 0:00:03.5]} 1-0

[Event "*** Titled Tuesday Blitz"]
[Site "Chess.com"]
[Date "2019.06.04"]
[Round "9"]
[White "aquaticpineapples"]
[Black "Shivagami"]
[Result "0-1"]
[WhiteElo "2151"]
[BlackElo "2086"]
[TimeControl "180+2"]
[EndTime "15:08:17 PDT"]
[Termination "Shivagami won by checkmate"]

1. d4 {[%clk 0:03:01.9]} 1... d5 {[%clk 0:02:59.3]} 2. Nf3 {[%clk 0:03:02]} 2...
Nf6 {[%clk 0:02:59.4]} 3. e3 {[%clk 0:03:01.8]} 3... c5 {[%clk 0:02:57.3]} 4.
dxc5 {[%clk 0:03:02.3]} 4... Nc6 {[%clk 0:02:56.9]} 5. a3 {[%clk 0:03:01.5]}
5... e5 {[%clk 0:02:56.3]} 6. c4 {[%clk 0:02:50.5]} 6... Bg4 {[%clk 0:02:46.4]}
7. h3 {[%clk 0:02:42.5]} 7... Bh5 {[%clk 0:02:40.7]} 8. g4 {[%clk 0:02:24.5]}
8... Bg6 {[%clk 0:02:40.2]} 9. cxd5 {[%clk 0:02:24.4]} 9... Qxd5 {[%clk
0:02:35.6]} 10. Qxd5 {[%clk 0:02:23.8]} 10... Nxd5 {[%clk 0:02:36.5]} 11. Bb5
{[%clk 0:02:16.8]} 11... f6 {[%clk 0:02:31.4]} 12. b4 {[%clk 0:02:08.7]} 12...
O-O-O {[%clk 0:02:19.7]} 13. Ke2 {[%clk 0:01:59.7]} 13... Bxb1 {[%clk
0:02:19.3]} 14. Bb2 {[%clk 0:01:48.2]} 14... Be4 {[%clk 0:02:12]} 15. Rhd1
{[%clk 0:01:46.5]} 15... a6 {[%clk 0:02:02.5]} 16. Bc4 {[%clk 0:01:45.5]} 16...
Nc7 {[%clk 0:01:37.4]} 17. Nd2 {[%clk 0:01:37.6]} 17... Bg6 {[%clk 0:01:35.2]}
18. h4 {[%clk 0:01:27.5]} 18... h5 {[%clk 0:01:30.7]} 19. g5 {[%clk 0:01:27.5]}
19... Be7 {[%clk 0:01:24.3]} 20. f4 {[%clk 0:01:20.3]} 20... fxg5 {[%clk
0:01:23.1]} 21. hxg5 {[%clk 0:01:14.7]} 21... h4 {[%clk 0:01:21.6]} 22. Nf3
{[%clk 0:01:09.6]} 22... e4 {[%clk 0:01:20]} 23. Nd4 {[%clk 0:01:02.5]} 23...
Bh5+ {[%clk 0:01:20.4]} 24. Kf2 {[%clk 0:01:02.6]} 24... Bxd1 {[%clk 0:01:20.5]}
25. Rxd1 {[%clk 0:01:00.9]} 25... Nxd4 {[%clk 0:01:17.7]} 26. Bxd4 {[%clk
0:01:01.2]} 26... h3 {[%clk 0:01:17.2]} 27. Rh1 {[%clk 0:01:00.8]} 27... Rh7
{[%clk 0:01:17]} 28. g6 {[%clk 0:00:58.1]} 28... Rh6 {[%clk 0:01:16.7]} 29. f5
{[%clk 0:00:52.3]} 29... Bf8 {[%clk 0:01:09.3]} 30. Kg3 {[%clk 0:00:48.2]} 30...
Rh5 {[%clk 0:00:52.7]} 31. Kg4 {[%clk 0:00:46.8]} 31... Rh6 {[%clk 0:00:50.2]}
32. Kg5 {[%clk 0:00:38.1]} 32... Ne8 {[%clk 0:00:11.5]} 33. Be5 {[%clk
0:00:37.6]} 33... b5 {[%clk 0:00:08.8]} 34. cxb6 {[%clk 0:00:34.8]} 34... Rd2
{[%clk 0:00:08.6]} 35. Bf7 {[%clk 0:00:33]} 35... Nd6 {[%clk 0:00:07.8]} 36.
Rc1+ {[%clk 0:00:32.7]} 36... Kb7 {[%clk 0:00:08.7]} 37. Bd4 {[%clk 0:00:32.3]}
37... Rg2+ {[%clk 0:00:08.4]} 38. Kf4 {[%clk 0:00:33]} 38... Rh4+ {[%clk
0:00:09.8]} 39. Ke5 {[%clk 0:00:33.2]} 39... Nc8 {[%clk 0:00:11.5]} 40. Rc7+
{[%clk 0:00:33.3]} 40... Kb8 {[%clk 0:00:13]} 41. Be6 {[%clk 0:00:31.8]} 41...
Bd6+ {[%clk 0:00:13.6]} 42. Kd5 {[%clk 0:00:31.2]} 42... Bxc7 {[%clk 0:00:15.2]}
43. bxc7+ {[%clk 0:00:30.9]} 43... Kxc7 {[%clk 0:00:17.1]} 44. Bxg7 {[%clk
0:00:30.7]} 44... Nb6+ {[%clk 0:00:17.8]} 45. Kd4 {[%clk 0:00:30.1]} 45... Rd2+
{[%clk 0:00:18.8]} 46. Kc3 {[%clk 0:00:30.8]} 46... h2 {[%clk 0:00:19.9]} 47.
Be5+ {[%clk 0:00:27]} 47... Kb7 {[%clk 0:00:20.3]} 48. Bxh2 {[%clk 0:00:13.6]}
48... Rhxh2 {[%clk 0:00:20]} 49. g7 {[%clk 0:00:14.4]} 49... Rhg2 {[%clk
0:00:21.4]} 50. f6 {[%clk 0:00:13.7]} 50... Nd5+ {[%clk 0:00:21.2]} 51. Bxd5+
{[%clk 0:00:13.1]} 51... Rxd5 {[%clk 0:00:22.4]} 52. f7 {[%clk 0:00:14.5]} 52...
Rd3+ {[%clk 0:00:24]} 53. Kc4 {[%clk 0:00:15]} 53... Rc2# {[%clk 0:00:25.6]} 0-1

[Event "*** Titled Tuesday Blitz"]
[Site "Chess.com"]
[Date "2019.06.04"]
[Round "9"]
[White "LuckIsMySkill"]
[Black "penguingm1"]
[Result "1/2-1/2"]
[WhiteElo "2683"]
[BlackElo "2895"]
[TimeControl "180+2"]
[EndTime "15:08:22 PDT"]
[Termination "Game drawn - insufficient material"]

1. f4 {[%clk 0:03:00.6]} 1... d5 {[%clk 0:02:59.4]} 2. Nf3 {[%clk 0:03:01.5]}
2... g6 {[%clk 0:03:00.9]} 3. e3 {[%clk 0:03:01.8]} 3... Bg7 {[%clk 0:03:02.2]}
4. c4 {[%clk 0:03:03.2]} 4... c6 {[%clk 0:02:49.3]} 5. d4 {[%clk 0:03:00.6]}
5... Nf6 {[%clk 0:02:47.9]} 6. Nc3 {[%clk 0:03:01]} 6... O-O {[%clk 0:02:49.1]}
7. cxd5 {[%clk 0:02:59]} 7... cxd5 {[%clk 0:02:46.5]} 8. Be2 {[%clk 0:02:59.6]}
8... Nc6 {[%clk 0:02:35.3]} 9. O-O {[%clk 0:03:00.1]} 9... Bf5 {[%clk
0:02:35.1]} 10. Bd2 {[%clk 0:02:55.4]} 10... Rc8 {[%clk 0:02:33.6]} 11. Ne5
{[%clk 0:02:54.2]} 11... Qb6 {[%clk 0:02:32.6]} 12. Qb3 {[%clk 0:02:50.1]} 12...
Qxb3 {[%clk 0:01:55.9]} 13. axb3 {[%clk 0:02:50.6]} 13... a6 {[%clk 0:01:57]}
14. Nxc6 {[%clk 0:02:45.4]} 14... Rxc6 {[%clk 0:01:58.9]} 15. b4 {[%clk
0:02:46.4]} 15... Rfc8 {[%clk 0:01:36.6]} 16. b5 {[%clk 0:02:39.8]} 16... axb5
{[%clk 0:01:29.5]} 17. Bxb5 {[%clk 0:02:40.3]} 17... Rb6 {[%clk 0:01:25.4]} 18.
Ra5 {[%clk 0:02:40.6]} 18... e6 {[%clk 0:01:20.8]} 19. Rfa1 {[%clk 0:02:26.1]}
19... Ne4 {[%clk 0:00:58.3]} 20. Ra8 {[%clk 0:02:05.8]} 20... Rxa8 {[%clk
0:00:53]} 21. Rxa8+ {[%clk 0:02:05.9]} 21... Bf8 {[%clk 0:00:54.6]} 22. Nxe4
{[%clk 0:02:05.4]} 22... Rxb5 {[%clk 0:00:53.5]} 23. Nf6+ {[%clk 0:01:34.7]}
23... Kg7 {[%clk 0:00:54.6]} 24. Ne8+ {[%clk 0:01:35.4]} 24... Kh6 {[%clk
0:00:56]} 25. Bc3 {[%clk 0:01:35.6]} 25... Bb4 {[%clk 0:00:49.1]} 26. h3 {[%clk
0:01:36.4]} 26... Bxc3 {[%clk 0:00:47.1]} 27. bxc3 {[%clk 0:01:37.3]} 27... Rb1+
{[%clk 0:00:46.7]} 28. Kh2 {[%clk 0:01:37.2]} 28... Rb2 {[%clk 0:00:46.2]} 29.
Nd6 {[%clk 0:01:38]} 29... Be4 {[%clk 0:00:29.3]} 30. Nxe4 {[%clk 0:01:19.7]}
30... dxe4 {[%clk 0:00:31.2]} 31. Ra7 {[%clk 0:01:21.3]} 31... Kg7 {[%clk
0:00:29]} 32. Kg1 {[%clk 0:01:18.5]} 32... b5 {[%clk 0:00:21.7]} 33. Kf1 {[%clk
0:01:13.2]} 33... Rb1+ {[%clk 0:00:15.2]} 34. Kf2 {[%clk 0:01:14]} 34... Rb2+
{[%clk 0:00:16.7]} 35. Kf1 {[%clk 0:01:15.3]} 35... h6 {[%clk 0:00:13.1]} 36.
Rc7 {[%clk 0:01:06.7]} 36... g5 {[%clk 0:00:13.5]} 37. fxg5 {[%clk 0:01:01.2]}
37... hxg5 {[%clk 0:00:14.6]} 38. Rc5 {[%clk 0:01:01.2]} 38... f5 {[%clk
0:00:15.3]} 39. g4 {[%clk 0:01:02.4]} 39... Kf6 {[%clk 0:00:12.5]} 40. gxf5
{[%clk 0:00:42.3]} 40... exf5 {[%clk 0:00:14.4]} 41. Rc6+ {[%clk 0:00:43.8]}
41... Kf7 {[%clk 0:00:15.7]} 42. Rc5 {[%clk 0:00:43.5]} 42... Kg6 {[%clk
0:00:16.9]} 43. Rc6+ {[%clk 0:00:38]} 43... Kh5 {[%clk 0:00:16]} 44. Rf6 {[%clk
0:00:38.7]} 44... f4 {[%clk 0:00:08.2]} 45. exf4 {[%clk 0:00:37.6]} 45... gxf4
{[%clk 0:00:09.6]} 46. Rxf4 {[%clk 0:00:38.2]} 46... Rc2 {[%clk 0:00:10.5]} 47.
Rxe4 {[%clk 0:00:27.6]} 47... Rxc3 {[%clk 0:00:11.7]} 48. Ke2 {[%clk 0:00:28.7]}
48... Rxh3 {[%clk 0:00:11.7]} 49. d5 {[%clk 0:00:29.5]} 49... Kg6 {[%clk
0:00:11.4]} 50. d6 {[%clk 0:00:28.8]} 50... Rh7 {[%clk 0:00:08.5]} 51. Re6+
{[%clk 0:00:18.5]} 51... Kf5 {[%clk 0:00:06.2]} 52. Re7 {[%clk 0:00:19.3]} 52...
Rh6 {[%clk 0:00:07.1]} 53. d7 {[%clk 0:00:19.5]} 53... Rd6 {[%clk 0:00:08.1]}
54. Ke3 {[%clk 0:00:17.9]} 54... Kf6 {[%clk 0:00:08.8]} 55. Rh7 {[%clk
0:00:18.7]} 55... Ke6 {[%clk 0:00:10.1]} 56. Ke4 {[%clk 0:00:18]} 56... Rxd7
{[%clk 0:00:09.4]} 57. Rxd7 {[%clk 0:00:18.9]} 57... Kxd7 {[%clk 0:00:11.3]} 58.
Kd5 {[%clk 0:00:20.3]} 58... b4 {[%clk 0:00:11.6]} 59. Kc4 {[%clk 0:00:21.4]}
59... Kc6 {[%clk 0:00:12.5]} 60. Kxb4 {[%clk 0:00:22.6]} 1/2-1/2

[Event "*** Titled Tuesday Blitz"]
[Site "Chess.com"]
[Date "2019.06.04"]
[Round "9"]
[White "HansCoolNiemann"]
[Black "Drags95"]
[Result "1-0"]
[WhiteElo "2717"]
[BlackElo "2769"]
[TimeControl "180+2"]
[EndTime "15:08:22 PDT"]
[Termination "HansCoolNiemann won on time"]

1. d4 {[%clk 0:03:01.9]} 1... Nf6 {[%clk 0:03:00.7]} 2. c4 {[%clk 0:03:03.3]}
2... e6 {[%clk 0:03:02.3]} 3. Nf3 {[%clk 0:03:04.6]} 3... d5 {[%clk 0:03:02.5]}
4. g3 {[%clk 0:03:04.3]} 4... Bb4+ {[%clk 0:03:03.5]} 5. Bd2 {[%clk 0:03:05.2]}
5... Be7 {[%clk 0:03:04.2]} 6. Bg2 {[%clk 0:03:06.8]} 6... c6 {[%clk 0:03:03.2]}
7. O-O {[%clk 0:03:07.4]} 7... Nbd7 {[%clk 0:03:04.8]} 8. Be3 {[%clk 0:03:08.5]}
8... O-O {[%clk 0:03:01]} 9. Nbd2 {[%clk 0:03:08.8]} 9... b6 {[%clk 0:03:01.1]}
10. Bf4 {[%clk 0:03:07.1]} 10... Nh5 {[%clk 0:03:00]} 11. Be3 {[%clk 0:03:07.9]}
11... Bb7 {[%clk 0:02:58.8]} 12. Rc1 {[%clk 0:03:08]} 12... Nhf6 {[%clk
0:02:59.9]} 13. Bf4 {[%clk 0:03:08.5]} 13... c5 {[%clk 0:02:59.5]} 14. dxc5
{[%clk 0:03:00.9]} 14... Nxc5 {[%clk 0:02:59.1]} 15. Ne5 {[%clk 0:03:00.5]}
15... Rc8 {[%clk 0:02:57.9]} 16. Nb3 {[%clk 0:03:01]} 16... Nce4 {[%clk
0:02:54.8]} 17. cxd5 {[%clk 0:02:58.8]} 17... Bxd5 {[%clk 0:02:51.2]} 18. Qd3
{[%clk 0:02:51.1]} 18... Bd6 {[%clk 0:02:39.6]} 19. Rfd1 {[%clk 0:02:45.8]}
19... Rxc1 {[%clk 0:02:32.8]} 20. Nxc1 {[%clk 0:02:36.5]} 20... Qc7 {[%clk
0:02:28.6]} 21. Nf3 {[%clk 0:01:10]} 21... Bxf4 {[%clk 0:02:28.3]} 22. gxf4
{[%clk 0:01:11.9]} 22... Qxf4 {[%clk 0:02:30]} 23. Qd4 {[%clk 0:01:10.1]} 23...
Rc8 {[%clk 0:02:06.2]} 24. Nd3 {[%clk 0:01:09.3]} 24... Qb8 {[%clk 0:02:06.9]}
25. Nfe5 {[%clk 0:01:10.2]} 25... h6 {[%clk 0:02:04.8]} 26. Nf4 {[%clk 0:01:02]}
26... Qc7 {[%clk 0:01:27.8]} 27. Nxd5 {[%clk 0:00:54]} 27... exd5 {[%clk
0:01:28.2]} 28. Bxe4 {[%clk 0:00:54.8]} 28... dxe4 {[%clk 0:01:28]} 29. b3
{[%clk 0:00:45.1]} 29... Re8 {[%clk 0:01:23.3]} 30. Nd7 {[%clk 0:00:40.4]} 30...
Ng4 {[%clk 0:01:09.3]} 31. Qd6 {[%clk 0:00:36.9]} 31... Qc2 {[%clk 0:01:10.1]}
32. h3 {[%clk 0:00:28.5]} 32... Qxe2 {[%clk 0:00:41.5]} 33. hxg4 {[%clk
0:00:22.1]} 33... Qxg4+ {[%clk 0:00:43.4]} 34. Kf1 {[%clk 0:00:21.6]} 34... e3
{[%clk 0:00:43.2]} 35. fxe3 {[%clk 0:00:17.9]} 35... Qf3+ {[%clk 0:00:40.9]} 36.
Kg1 {[%clk 0:00:19.3]} 36... Qxe3+ {[%clk 0:00:42.5]} 37. Kf1 {[%clk 0:00:18.9]}
37... Qf3+ {[%clk 0:00:43.4]} 38. Kg1 {[%clk 0:00:20]} 38... Qe3+ {[%clk
0:00:38.9]} 39. Kf1 {[%clk 0:00:20.9]} 39... Qe2+ {[%clk 0:00:40.2]} 40. Kg1
{[%clk 0:00:21.8]} 40... Qxa2 {[%clk 0:00:40.8]} 41. Qd3 {[%clk 0:00:19.4]}
41... Qa5 {[%clk 0:00:33.6]} 42. Rd2 {[%clk 0:00:15.1]} 42... Kh8 {[%clk
0:00:33]} 43. Rg2 {[%clk 0:00:15.9]} 43... Qe1+ {[%clk 0:00:26.6]} 44. Qf1
{[%clk 0:00:14.1]} 44... Qe3+ {[%clk 0:00:22.8]} 45. Kh2 {[%clk 0:00:12.3]}
45... Qxb3 {[%clk 0:00:20.7]} 46. Nf6 {[%clk 0:00:11.1]} 46... Re5 {[%clk
0:00:18.1]} 47. Qf4 {[%clk 0:00:11.2]} 47... Qe6 {[%clk 0:00:18.6]} 48. Ng4
{[%clk 0:00:10.3]} 48... Re4 {[%clk 0:00:12.3]} 49. Qb8+ {[%clk 0:00:08.6]}
49... Kh7 {[%clk 0:00:13.7]} 50. Qg3 {[%clk 0:00:10.2]} 50... Qg6 {[%clk
0:00:11.7]} 51. Qf3 {[%clk 0:00:10.6]} 51... Qh5+ {[%clk 0:00:12.3]} 52. Kg1
{[%clk 0:00:11.5]} 52... Qc5+ {[%clk 0:00:13]} 53. Kh2 {[%clk 0:00:12.4]} 53...
Qd6+ {[%clk 0:00:14.1]} 54. Kh3 {[%clk 0:00:12.8]} 54... Qf4 {[%clk 0:00:13]}
55. Qd3 {[%clk 0:00:11.3]} 55... f5 {[%clk 0:00:13.4]} 56. Nf6+ {[%clk
0:00:12.1]} 1-0

[Event "*** Titled Tuesday Blitz"]
[Site "Chess.com"]
[Date "2019.06.04"]
[Round "9"]
[White "Ambitiousresolutions"]
[Black "SergeiAza"]
[Result "1/2-1/2"]
[WhiteElo "2614"]
[BlackElo "2764"]
[TimeControl "180+2"]
[EndTime "15:08:23 PDT"]
[Termination "Game drawn by repetition"]

1. e4 {[%clk 0:02:14.8]} 1... c5 {[%clk 0:02:58.6]} 2. Nf3 {[%clk 0:02:13.1]}
2... Nc6 {[%clk 0:02:59.5]} 3. Bb5 {[%clk 0:02:13.3]} 3... e6 {[%clk 0:02:58.8]}
4. O-O {[%clk 0:02:13.2]} 4... Nge7 {[%clk 0:03:00]} 5. Re1 {[%clk 0:02:14.3]}
5... Nd4 {[%clk 0:03:00.7]} 6. Nxd4 {[%clk 0:02:13.7]} 6... cxd4 {[%clk
0:03:01.4]} 7. c3 {[%clk 0:02:15.3]} 7... a6 {[%clk 0:02:51.5]} 8. Bf1 {[%clk
0:02:15.5]} 8... Nc6 {[%clk 0:02:52.9]} 9. b4 {[%clk 0:01:56.6]} 9... Be7 {[%clk
0:02:44.6]} 10. Bb2 {[%clk 0:01:56.4]} 10... Bf6 {[%clk 0:02:42.1]} 11. Na3
{[%clk 0:01:53.6]} 11... O-O {[%clk 0:02:25.2]} 12. cxd4 {[%clk 0:01:46.7]}
12... Nxb4 {[%clk 0:02:15.2]} 13. Qb3 {[%clk 0:01:35.4]} 13... Nc6 {[%clk
0:02:06.7]} 14. e5 {[%clk 0:01:19.1]} 14... Be7 {[%clk 0:02:05.8]} 15. Nc4
{[%clk 0:01:19.5]} 15... b5 {[%clk 0:02:01.1]} 16. Nd6 {[%clk 0:01:20.6]} 16...
Bxd6 {[%clk 0:01:58.5]} 17. exd6 {[%clk 0:01:22.5]} 17... Bb7 {[%clk 0:01:49.1]}
18. d5 {[%clk 0:01:22.8]} 18... exd5 {[%clk 0:01:39.7]} 19. Qg3 {[%clk
0:01:11.6]} 19... d4 {[%clk 0:01:39.4]} 20. Bd3 {[%clk 0:01:08.7]} 20... Qf6
{[%clk 0:01:02]} 21. Qh3 {[%clk 0:00:59.8]} 21... h6 {[%clk 0:01:02]} 22. Qxd7
{[%clk 0:00:58.3]} 22... Nb4 {[%clk 0:00:44.4]} 23. Be4 {[%clk 0:00:34]} 23...
Bxe4 {[%clk 0:00:41.2]} 24. Rxe4 {[%clk 0:00:35.9]} 24... Rad8 {[%clk 0:00:29]}
25. Bxd4 {[%clk 0:00:29.8]} 25... Qxd4 {[%clk 0:00:25]} 26. Rxd4 {[%clk
0:00:30.1]} 26... Rxd7 {[%clk 0:00:26.5]} 27. Rxb4 {[%clk 0:00:31]} 27... Rxd6
{[%clk 0:00:27.6]} 28. a4 {[%clk 0:00:31.8]} 28... Rb8 {[%clk 0:00:23.8]} 29.
axb5 {[%clk 0:00:31.6]} 29... Rxb5 {[%clk 0:00:24]} 30. Rba4 {[%clk 0:00:27.2]}
30... Rb2 {[%clk 0:00:20.7]} 31. d4 {[%clk 0:00:21.4]} 31... Rf6 {[%clk
0:00:19.6]} 32. Rf1 {[%clk 0:00:21.3]} 32... g5 {[%clk 0:00:18.7]} 33. g3 {[%clk
0:00:21.6]} 33... Kg7 {[%clk 0:00:19.2]} 34. d5 {[%clk 0:00:20.6]} 34... Rd2
{[%clk 0:00:19]} 35. Ra5 {[%clk 0:00:21.3]} 35... g4 {[%clk 0:00:18.3]} 36. Ra4
{[%clk 0:00:20.8]} 36... h5 {[%clk 0:00:19]} 37. Ra5 {[%clk 0:00:22.4]} 37...
Kg6 {[%clk 0:00:19.6]} 38. Kg2 {[%clk 0:00:23.6]} 38... Re2 {[%clk 0:00:13.9]}
39. h3 {[%clk 0:00:22.3]} 39... gxh3+ {[%clk 0:00:13.9]} 40. Kxh3 {[%clk
0:00:24.2]} 40... Rd2 {[%clk 0:00:14.7]} 41. Kg2 {[%clk 0:00:24]} 41... Kg7
{[%clk 0:00:13.5]} 42. Kg1 {[%clk 0:00:23.4]} 42... Rd6 {[%clk 0:00:13.8]} 43.
Rfa1 {[%clk 0:00:22.3]} 43... Rf6 {[%clk 0:00:14.8]} 44. Rf1 {[%clk 0:00:17.4]}
44... h4 {[%clk 0:00:15.5]} 45. Kg2 {[%clk 0:00:16.7]} 45... Rg6 {[%clk
0:00:14.8]} 46. Kh3 {[%clk 0:00:15.7]} 46... hxg3 {[%clk 0:00:15.4]} 47. fxg3
{[%clk 0:00:17.6]} 47... Rd3 {[%clk 0:00:16.7]} 48. Rg1 {[%clk 0:00:17.3]} 48...
Rh6+ {[%clk 0:00:16.5]} 49. Kg2 {[%clk 0:00:18.5]} 49... Rg6 {[%clk 0:00:17.3]}
50. Kf2 {[%clk 0:00:18.6]} 50... Rb6 {[%clk 0:00:14.3]} 51. Kg2 {[%clk 0:00:18]}
51... Rg6 {[%clk 0:00:14.7]} 52. Kf2 {[%clk 0:00:18.1]} 52... Rb6 {[%clk
0:00:14.9]} 53. Kg2 {[%clk 0:00:19.1]} 53... Rd2+ {[%clk 0:00:15.5]} 54. Kh3
{[%clk 0:00:19.4]} 54... Rd4 {[%clk 0:00:16.7]} 55. g4 {[%clk 0:00:16.4]} 55...
Rd2 {[%clk 0:00:15.1]} 56. Rg2 {[%clk 0:00:17.1]} 56... Rb3+ {[%clk 0:00:14.7]}
57. Rg3 {[%clk 0:00:17]} 57... Rb6 {[%clk 0:00:15.8]} 58. g5 {[%clk 0:00:17.7]}
58... Rd4 {[%clk 0:00:15.7]} 59. Rg4 {[%clk 0:00:18.6]} 59... Rb3+ {[%clk
0:00:16.7]} 60. Rg3 {[%clk 0:00:19.8]} 60... Rb6 {[%clk 0:00:16.6]} 61. Rg4
{[%clk 0:00:20.1]} 61... Rd3+ {[%clk 0:00:17.3]} 62. Rg3 {[%clk 0:00:21.4]}
62... Rd4 {[%clk 0:00:17.7]} 1/2-1/2